Cogmind - Beta 15 @@@ ROGUE MODE // 2025.06.18 @ 22:12:43 Player: quak Result: Destroyed by S-27 Virus with Autogun Performance ------------- Evolutions (4) 2000 Regions Visited (14) 2800 Robots Destroyed (0) 0 Value Destroyed (0) 0 Prototype IDs (33) 660 Alien Tech Used (0) 0 Bonus (2725) 2725 TOTAL SCORE: 8185 Bonus ------- Pacifist 1419 Follower Combat Kills 206 Entered DSFs 500 Aligned with FarCom 300 Met Data Miner 300 Cogmind --------- Core Integrity 0/850 Matter 300/300 Energy 98/100 System Corruption 1% Temperature Cool (0) Movement Core (50) Location -5/Proximity Caves Parts ------- > --- POWER (9) -------- (None) > --- PROPULSION (2) --- (None) > --- UTILITY (2) ------ (None) > --- WEAPON (2) ------- (None) > --- INVENTORY (5) ---- (None) Peak State ------------ None Favorites ----------- Power None Propulsion None Utility None Weapon None Build | -11 -10 -10 -9 -9 -9 -8 -8 -7 -7 -6 -6 -6 -6 -5 ------- Run | Yrd Mat Min Mat Min Exi Min Mat Fac DSF Fac Low Low Dat Pro Slots Evolved 8 | . . . 2 . . . 2 2 . 2 . . . . Power 8 | . . . 2 . . . 2 2 . 2 . . . . Propulsion . | . . . . . . . . . . . . . . . Utility . | . . . . . . . . . . . . . . . Weapon . | . . . . . . . . . . . . . . . Parts Attached . | . . . . . . . . . . . . . . . Power . | . . . . . . . . . . . . . . . Engine . | . . . . . . . . . . . . . . . Core . | . . . . . . . . . . . . . . . Reactor . | . . . . . . . . . . . . . . . Propulsion . | . . . . . . . . . . . . . . . Treads . | . . . . . . . . . . . . . . . Leg . | . . . . . . . . . . . . . . . Wheel . | . . . . . . . . . . . . . . . Hover . | . . . . . . . . . . . . . . . Flight . | . . . . . . . . . . . . . . . Utility . | . . . . . . . . . . . . . . . Device . | . . . . . . . . . . . . . . . Storage . | . . . . . . . . . . . . . . . Processor . | . . . . . . . . . . . . . . . Hackware . | . . . . . . . . . . . . . . . Protection . | . . . . . . . . . . . . . . . Artifact . | . . . . . . . . . . . . . . . Weapon . | . . . . . . . . . . . . . . . Energy Gun . | . . . . . . . . . . . . . . . Energy Cannon . | . . . . . . . . . . . . . . . Ballistic Gun . | . . . . . . . . . . . . . . . Ballistic Cannon . | . . . . . . . . . . . . . . . Launcher . | . . . . . . . . . . . . . . . Special Weapon . | . . . . . . . . . . . . . . . Impact Weapon . | . . . . . . . . . . . . . . . Slashing Weapon . | . . . . . . . . . . . . . . . Piercing Weapon . | . . . . . . . . . . . . . . . Special Melee Weapon . | . . . . . . . . . . . . . . . Unidentified Prototypes . | . . . . . . . . . . . . . . . Parts Lost . | . . . . . . . . . . . . . . . Power . | . . . . . . . . . . . . . . . Propulsion . | . . . . . . . . . . . . . . . Utility . | . . . . . . . . . . . . . . . Weapon . | . . . . . . . . . . . . . . . Highest Loss Streak . | . . . . . . . . . . . . . . . To Critical Strikes . | . . . . . . . . . . . . . . . Average Backups . | . . . . . . . . . . . . . . . Power . | . . . . . . . . . . . . . . . Propulsion . | . . . . . . . . . . . . . . . Utility . | . . . . . . . . . . . . . . . Weapon . | . . . . . . . . . . . . . . . Tool/Special . | . . . . . . . . . . . . . . . Unused Backups . | . . . . . . . . . . . . . . . Power . | . . . . . . . . . . . . . . . Propulsion . | . . . . . . . . . . . . . . . Utility . | . . . . . . . . . . . . . . . Weapon . | . . . . . . . . . . . . . . . Tool/Special . | . . . . . . . . . . . . . . . Average Slot Usage (%) . | . . . . . . . . . . . . . . . Peak Build Rating . | . . . . . . . . . . . . . . . Average Rating . | . . . . . . . . . . . . . . . On Entrance . | . . . . . . . . . . . . . . . Naked Turns 1502 | . 51 68 47 31 271 152 81 78 72 188 111 181 40 131 Heaviest Build . | . . . . . . . . . . . . . . . Greatest Support 3 | 3 3 3 3 3 3 3 3 3 3 3 3 3 3 3 Greatest Overweight (x) . | . . . . . . . . . . . . . . . Average Overweight (x) . | . . . . . . . . . . . . . . . Largest Inventory Capacity 5 | 5 5 5 5 5 5 5 5 5 5 5 5 5 5 5 Average Capacity 5 | 5 5 5 5 5 5 5 5 5 5 5 5 5 5 5 Most Carried . | . . . . . . . . . . . . . . . Average Carried . | . . . . . . . . . . . . . . . Final Capacity 5 | 5 5 5 5 5 5 5 5 5 5 5 5 5 5 5 Final Carried . | . . . . . . . . . . . . . . . Class Distribution -------------------- 100% | Mutant Dominant Class ---------------- Mutant | -10/Materials Mutant | -10/Mines Mutant | -9/Materials Mutant | -9/Mines Mutant | -9/Exiles Mutant | -8/Mines Mutant | -8/Materials Mutant | -7/Factory Mutant | -7/DSF Mutant | -6/Factory Mutant | -6/Lower Caves Mutant | -6/Lower Caves Mutant | -6/Data Miner Mutant | -5/Proximity Caves Resources | -11 -10 -10 -9 -9 -9 -8 -8 -7 -7 -6 -6 -6 -6 -5 ----------- Run | Yrd Mat Min Mat Min Exi Min Mat Fac DSF Fac Low Low Dat Pro Matter Collected 188 | . . 188 . . . . . . . . . . . . Remotely . | . . . . . . . . . . . . . . . Salvage Created . | . . . . . . . . . . . . . . . Parts . | . . . . . . . . . . . . . . . Haulers Intercepted . | . . . . . . . . . . . . . . . Recyclers Shooed . | . . . . . . . . . . . . . . . Parts Field Recycled . | . . . . . . . . . . . . . . . Retrieved Matter . | . . . . . . . . . . . . . . . Parts Self-Destructed 16 | . . . . . . . . . . . . . . 16 Prevented . | . . . . . . . . . . . . . . . Kills | -11 -10 -10 -9 -9 -9 -8 -8 -7 -7 -6 -6 -6 -6 -5 ------- Run | Yrd Mat Min Mat Min Exi Min Mat Fac DSF Fac Low Low Dat Pro Combat Hostiles Destroyed . | . . . . . . . . . . . . . . . Classes Destroyed . | . . . . . . . . . . . . . . . Best Kill Streak . | . . . . . . . . . . . . . . . Combat Bots Only . | . . . . . . . . . . . . . . . Max Kills in Single Turn . | . . . . . . . . . . . . . . . Gunslinging . | . . . . . . . . . . . . . . . Exploded . | . . . . . . . . . . . . . . . Melee . | . . . . . . . . . . . . . . . Uniques/NPCs Destroyed . | . . . . . . . . . . . . . . . Combat | -11 -10 -10 -9 -9 -9 -8 -8 -7 -7 -6 -6 -6 -6 -5 -------- Run | Yrd Mat Min Mat Min Exi Min Mat Fac DSF Fac Low Low Dat Pro Hostile Shots Fired 270 | . 16 15 6 . . 64 25 . 46 45 6 5 . 42 Missed 119 | . 9 7 2 . . 28 5 . 19 24 4 1 . 20 Hits 151 | . 7 8 4 . . 36 20 . 27 21 2 4 . 22 Melee 24 | . . . . . . . . . 24 . . . . . Projectile 127 | . 7 8 4 . . 36 20 . 3 21 2 4 . 22 AOE 3 | . . . . . . . . . 3 . . . . . Critical Strikes 14 | . . . . . . 1 1 . 10 1 . . . 1 Damage Taken 2213 | . 65 73 33 . . 304 305 . 582 384 28 86 . 353 Core 2213 | . 65 73 33 . . 304 305 . 582 384 28 86 . 353 Absorbed by Shields 44 | . . . . . . . . . 44 . . . . . Core Remaining (%) 43 | 100 . 44 . . . 15 44 . 16 . . . . . Volleys Fired . | . . . . . . . . . . . . . . . Largest . | . . . . . . . . . . . . . . . Hottest . | . . . . . . . . . . . . . . . Shots Fired . | . . . . . . . . . . . . . . . Gun . | . . . . . . . . . . . . . . . Cannon . | . . . . . . . . . . . . . . . Launcher . | . . . . . . . . . . . . . . . Special . | . . . . . . . . . . . . . . . Kinetic . | . . . . . . . . . . . . . . . Thermal . | . . . . . . . . . . . . . . . Explosive . | . . . . . . . . . . . . . . . Electromagnetic . | . . . . . . . . . . . . . . . Robot Hit Streak . | . . . . . . . . . . . . . . . Robot Miss Streak . | . . . . . . . . . . . . . . . Penetration Max . | . . . . . . . . . . . . . . . Secondary Targets . | . . . . . . . . . . . . . . . Shots Hit Robots . | . . . . . . . . . . . . . . . Core Hits 2 | . . . . . . . 1 . . 1 . . . . Critical Kills . | . . . . . . . . . . . . . . . Critical Parts Destroyed . | . . . . . . . . . . . . . . . Critical Strikes . | . . . . . . . . . . . . . . . Melee Attacks . | . . . . . . . . . . . . . . . Impact . | . . . . . . . . . . . . . . . Slashing . | . . . . . . . . . . . . . . . Piercing . | . . . . . . . . . . . . . . . Sneak Attacks . | . . . . . . . . . . . . . . . Combat Hostiles . | . . . . . . . . . . . . . . . Follow-up Attacks . | . . . . . . . . . . . . . . . Damage Inflicted 113 | . 13 13 . . . 18 49 . . 20 . . . . Guns . | . . . . . . . . . . . . . . . Cannons . | . . . . . . . . . . . . . . . Explosions . | . . . . . . . . . . . . . . . Melee . | . . . . . . . . . . . . . . . Ramming 113 | . 13 13 . . . 18 49 . . 20 . . . . Kinetic . | . . . . . . . . . . . . . . . Thermal . | . . . . . . . . . . . . . . . Explosive . | . . . . . . . . . . . . . . . Electromagnetic . | . . . . . . . . . . . . . . . Impact . | . . . . . . . . . . . . . . . Slashing . | . . . . . . . . . . . . . . . Piercing . | . . . . . . . . . . . . . . . Highest Corruption 1 | . . . . . . . . . . . . . . 1 Average Corruption 1 | . . . . . . . . . . . . . . 1 Corruption Purged . | . . . . . . . . . . . . . . . Corruption Blocked . | . . . . . . . . . . . . . . . Overload Shots . | . . . . . . . . . . . . . . . Overflow Damage . | . . . . . . . . . . . . . . . Projectiles . | . . . . . . . . . . . . . . . Explosions . | . . . . . . . . . . . . . . . Melee . | . . . . . . . . . . . . . . . Knockbacks . | . . . . . . . . . . . . . . . Impact . | . . . . . . . . . . . . . . . Kinetic . | . . . . . . . . . . . . . . . Secondary . | . . . . . . . . . . . . . . . Self-Inflicted Damage 52 | . 6 6 . . . 9 22 . . 9 . . . . Shots . | . . . . . . . . . . . . . . . Rammed 18 | . 3 1 . . . 1 10 . . 3 . . . . Targets Rammed 18 | . 3 1 . . . 1 10 . . 3 . . . . Kicked . | . . . . . . . . . . . . . . . Crushed . | . . . . . . . . . . . . . . . Highest Temperature . | . . . . . . . . . . . . . . . Average Temperature . | . . . . . . . . . . . . . . . Received Heat Transfer 282 | . . . . . . 9 144 . . 102 . 27 . . Siege Activations . | . . . . . . . . . . . . . . . Martial Activations . | . . . . . . . . . . . . . . . Shielding Activations . | . . . . . . . . . . . . . . . Robots Disrupted . | . . . . . . . . . . . . . . . Combat Hostiles . | . . . . . . . . . . . . . . . Robots Corrupted . | . . . . . . . . . . . . . . . Combat Hostiles . | . . . . . . . . . . . . . . . Parts Fried . | . . . . . . . . . . . . . . . Impact Corruptions . | . . . . . . . . . . . . . . . Robots Melted . | . . . . . . . . . . . . . . . Combat Hostiles . | . . . . . . . . . . . . . . . Parts Melted . | . . . . . . . . . . . . . . . Heat Transferred . | . . . . . . . . . . . . . . . Parts Sabotaged . | . . . . . . . . . . . . . . . Parts Stolen . | . . . . . . . . . . . . . . . Parts Stripped . | . . . . . . . . . . . . . . . Power Chain Reactions . | . . . . . . . . . . . . . . . Alert | -11 -10 -10 -9 -9 -9 -8 -8 -7 -7 -6 -6 -6 -6 -5 ------- Run | Yrd Mat Min Mat Min Exi Min Mat Fac DSF Fac Low Low Dat Pro Maximum Alert Level 1 | . . . . . . . 1 . . . . . . . Low Security (%) 99 | 100 100 100 100 100 . 100 95 100 100 100 . . . . Level 1 . | . . . . . . . 4 . . . . . . . Level 2 . | . . . . . . . . . . . . . . . Level 3 . | . . . . . . . . . . . . . . . Level 4 . | . . . . . . . . . . . . . . . Level 5 . | . . . . . . . . . . . . . . . High Security . | . . . . . . . . . . . . . . . Max Security . | . . . . . . . . . . . . . . . Peak Influence 204 | . 5 . 5 . . 160 204 88 59 60 . . . . Initial 88 | . . . . . . . 54 88 44 30 . . . . Average 41 | . 1 . 1 . . 75 73 73 49 28 . . . . Influence Increases 919 | . 5 . 5 . . 210 180 5 15 90 . 165 . 244 Destroy 0b10 Robot/C 140 | . . . . . . . . . . . . . . 140 Destroy Leader 20 | . . . . . . . . . . . . . . 20 Allied During Kill 39 | . . . . . . . . . . . . . . 39 Successful Hack 15 | . 5 . 5 . . . . 5 . . . . . . Partial Spotted 30 | . . . . . . . 15 . . 15 . . . . Lose Combat Pursuer 675 | . . . . . . 210 165 . 15 75 . 165 . 45 Influence Decreases 735 | . 5 . 5 . . 70 126 136 19 109 40 80 85 60 Entered New Map 340 | . . . . . . . 86 106 19 29 15 . 85 . Time Decay 375 | . 5 . 5 . . 70 40 30 . 80 25 80 . 40 Lost Ally 20 | . . . . . . . . . . . . . . 20 Squads Dispatched 9 | . 1 . . . . . 3 . 1 3 . 1 . . Investigation 5 | . 1 . . . . . 1 . . 3 . . . . Extermination . | . . . . . . . . . . . . . . . Reinforcement 3 | . . . . . . . 2 . 1 . . . . . Assault 1 | . . . . . . . . . . . . 1 . . Garrison . | . . . . . . . . . . . . . . . Intercept . | . . . . . . . . . . . . . . . Searches Triggered . | . . . . . . . . . . . . . . . Construction Impeded 1 | . . . . . . . 1 . . . . . . . Haulers Reinforced . | . . . . . . . . . . . . . . . Active Scanning Responses . | . . . . . . . . . . . . . . . Cargo Convoy Interrupts . | . . . . . . . . . . . . . . . Stealth | -11 -10 -10 -9 -9 -9 -8 -8 -7 -7 -6 -6 -6 -6 -5 --------- Run | Yrd Mat Min Mat Min Exi Min Mat Fac DSF Fac Low Low Dat Pro Distress Signals 5 | . 1 . . . . . 3 . . 1 . . . . Communications Jammed . | . . . . . . . . . . . . . . . Distress Signals . | . . . . . . . . . . . . . . . Times Spotted 107 | . 7 10 5 . . 17 25 . 6 14 4 6 . 13 Peak Tracking Total 20 | . 7 20 5 . . 8 19 . 5 9 4 8 . 5 Tactical Retreats 13 | . . . . . . 4 2 . 1 2 . 3 . 1 Traps | -11 -10 -10 -9 -9 -9 -8 -8 -7 -7 -6 -6 -6 -6 -5 ------- Run | Yrd Mat Min Mat Min Exi Min Mat Fac DSF Fac Low Low Dat Pro Traps Triggered 6 | . . . . . . . 2 . 3 1 . . . . Indirectly . | . . . . . . . . . . . . . . . Trap Hack Attempts . | . . . . . . . . . . . . . . . Triggered . | . . . . . . . . . . . . . . . Disarmed . | . . . . . . . . . . . . . . . Reprogrammed . | . . . . . . . . . . . . . . . Reused . | . . . . . . . . . . . . . . . Traps Extracted . | . . . . . . . . . . . . . . . Installed . | . . . . . . . . . . . . . . . Triggered . | . . . . . . . . . . . . . . . Machines | -11 -10 -10 -9 -9 -9 -8 -8 -7 -7 -6 -6 -6 -6 -5 ---------- Run | Yrd Mat Min Mat Min Exi Min Mat Fac DSF Fac Low Low Dat Pro Machines Disabled . | . . . . . . . . . . . . . . . Max in Single Turn . | . . . . . . . . . . . . . . . Machines Repaired . | . . . . . . . . . . . . . . . Machines Dismantled . | . . . . . . . . . . . . . . . Machines Sabotaged . | . . . . . . . . . . . . . . . Overloaded Fab Kills . | . . . . . . . . . . . . . . . Hacking | -11 -10 -10 -9 -9 -9 -8 -8 -7 -7 -6 -6 -6 -6 -5 --------- Run | Yrd Mat Min Mat Min Exi Min Mat Fac DSF Fac Low Low Dat Pro Machines Accessed 18 | . 2 . 1 . 5 . 1 1 . 4 . . 4 . Terminals 8 | . 2 . 1 . . . 1 1 . 3 . . . . Fabricators 1 | . . . . . . . . . . 1 . . . . Repair Stations . | . . . . . . . . . . . . . . . Recycling Units . | . . . . . . . . . . . . . . . Scanalyzers . | . . . . . . . . . . . . . . . Garrison Access . | . . . . . . . . . . . . . . . Total Hacks 98 | . 6 . 4 . 43 . 2 3 . 9 . . 31 . Successful 80 | . 2 . 1 . 43 . 1 1 . 1 . . 31 . Failed 18 | . 4 . 3 . . . 1 2 . 8 . . . . Catastrophic 2 | . . . . . . . 1 . . 1 . . . . Database Lockouts . | . . . . . . . . . . . . . . . Manual 16 | . 6 . 4 . 1 . 1 . . 4 . . . . Terminals 23 | . 6 . 4 . . . 2 3 . 8 . . . . Fabricators 1 | . . . . . . . . . . 1 . . . . Repair Stations . | . . . . . . . . . . . . . . . Recycling Units . | . . . . . . . . . . . . . . . Scanalyzers . | . . . . . . . . . . . . . . . Garrison Access . | . . . . . . . . . . . . . . . Terminal Hacks 77 | . . . . . 43 . 1 1 . 1 . . 31 . Record 53 | . . . . . 42 . . . . . . . 11 . Part Schematic 12 | . . . . . . . . . . . . . 12 . Robot Schematic 5 | . . . . . . . . . . . . . 5 . Prototype ID Bank 3 | . . . . . . . . . . . . . 3 . Open DSF 2 | . . . . . . . . 1 . 1 . . . . Emergency Access Points 1 | . . . . . . . 1 . . . . . . . Proto ID Catalog 1 | . . . . . 1 . . . . . . . . . Fabricator Hacks . | . . . . . . . . . . . . . . . Repair Station Hacks . | . . . . . . . . . . . . . . . Recycling Unit Hacks . | . . . . . . . . . . . . . . . Scanalyzer . | . . . . . . . . . . . . . . . Garrison Access Hacks . | . . . . . . . . . . . . . . . Unauthorized Hacks 3 | . 2 . 1 . . . . . . . . . . . Terminals 3 | . 2 . 1 . . . . . . . . . . . Botnet 3 | . 2 . 1 . . . . . . . . . . . Fabricators . | . . . . . . . . . . . . . . . Repair Stations . | . . . . . . . . . . . . . . . Recycling Units . | . . . . . . . . . . . . . . . Scanalyzers . | . . . . . . . . . . . . . . . Garrison Access . | . . . . . . . . . . . . . . . Data Cores Recovered . | . . . . . . . . . . . . . . . Used . | . . . . . . . . . . . . . . . Hacking Detections 8 | . 2 . 1 . . . 1 . . 4 . . . . Full Trace Events 5 | . 1 . . . . . 1 . . 3 . . . . Feedback Events . | . . . . . . . . . . . . . . . Feedback Blocked . | . . . . . . . . . . . . . . . Robot Schematics Acquired 5 | . . . . . . . . . . . . . 5 . Robots Built . | . . . . . . . . . . . . . . . Authchips . | . . . . . . . . . . . . . . . Time . | . . . . . . . . . . . . . . . Total Robot Build Rating . | . . . . . . . . . . . . . . . Part Schematics Acquired 12 | . . . . . . . . . . . . . 12 . Parts Built . | . . . . . . . . . . . . . . . Authchips . | . . . . . . . . . . . . . . . Time . | . . . . . . . . . . . . . . . Total Part Build Rating . | . . . . . . . . . . . . . . . Parts Repaired . | . . . . . . . . . . . . . . . Time . | . . . . . . . . . . . . . . . Parts Recycled . | . . . . . . . . . . . . . . . Recycled Matter . | . . . . . . . . . . . . . . . Retrieved Matter . | . . . . . . . . . . . . . . . Retrieved Components . | . . . . . . . . . . . . . . . Parts Scanalyzed . | . . . . . . . . . . . . . . . Part Schematics Acquired . | . . . . . . . . . . . . . . . Parts Damaged . | . . . . . . . . . . . . . . . Bothacking | -11 -10 -10 -9 -9 -9 -8 -8 -7 -7 -6 -6 -6 -6 -5 ------------ Run | Yrd Mat Min Mat Min Exi Min Mat Fac DSF Fac Low Low Dat Pro Used RIF Installer . | . . . . . . . . . . . . . . . Robots Hacked . | . . . . . . . . . . . . . . . Non-combat . | . . . . . . . . . . . . . . . Combat . | . . . . . . . . . . . . . . . Robot Hacks Applied . | . . . . . . . . . . . . . . . Relay Couplers Released . | . . . . . . . . . . . . . . . Fabnet Peak Effective % . | . . . . . . . . . . . . . . . Robots Rewired . | . . . . . . . . . . . . . . . Allies Hacked . | . . . . . . . . . . . . . . . Hacks Repelled . | . . . . . . . . . . . . . . . Allies | -11 -10 -10 -9 -9 -9 -8 -8 -7 -7 -6 -6 -6 -6 -5 -------- Run | Yrd Mat Min Mat Min Exi Min Mat Fac DSF Fac Low Low Dat Pro Total Allies 1 | . . . . . . . . . . . . . . 1 Largest Group 1 | . . . . . . . . . . . . . . 1 Highest-Rated Group 96 | . . . . . . . . . . . . . . 96 Highest-Rated Ally 96 | . . . . . . . . . . . . . . 96 Total Orders . | . . . . . . . . . . . . . . . Ally Attacks 19 | . . . . . . . . . . . . . . 19 Total Damage 720 | . . . . . . . . . . . . . . 720 Kills 7 | . . . . . . . . . . . . . . 7 Allies Corrupted . | . . . . . . . . . . . . . . . Allies Melted . | . . . . . . . . . . . . . . . Intel | -11 -10 -10 -9 -9 -9 -8 -8 -7 -7 -6 -6 -6 -6 -5 ------- Run | Yrd Mat Min Mat Min Exi Min Mat Fac DSF Fac Low Low Dat Pro Active Infowar (turns) . | . . . . . . . . . . . . . . . Robot Analysis Total . | . . . . . . . . . . . . . . . Derelict Logs Recovered 6 | . . 1 . 1 . . . . . . 1 1 . 2 Drone Launches . | . . . . . . . . . . . . . . . Drone Recoveries . | . . . . . . . . . . . . . . . Exploration | -11 -10 -10 -9 -9 -9 -8 -8 -7 -7 -6 -6 -6 -6 -5 ------------- Run | Yrd Mat Min Mat Min Exi Min Mat Fac DSF Fac Low Low Dat Pro Turns Passed 1511 | 9 51 68 47 31 271 152 81 78 72 188 111 181 40 131 Spaces Moved 2936 | 18 97 134 93 62 542 302 142 153 126 353 217 361 80 256 Core 2936 | 18 97 134 93 62 542 302 142 153 126 353 217 361 80 256 Treads . | . . . . . . . . . . . . . . . Legs . | . . . . . . . . . . . . . . . Wheels . | . . . . . . . . . . . . . . . Hover . | . . . . . . . . . . . . . . . Flight . | . . . . . . . . . . . . . . . Fastest Speed 50 | 50 50 50 50 50 50 50 50 50 50 50 50 50 50 50 Average Speed 50 | 50 50 50 50 50 50 50 50 50 50 50 50 50 50 50 Slowest Speed 50 | 50 50 50 50 50 50 50 50 50 50 50 50 50 50 50 Overloaded Moves . | . . . . . . . . . . . . . . . Propulsion Burnouts . | . . . . . . . . . . . . . . . Robots Hopped . | . . . . . . . . . . . . . . . Potential Cave-ins . | . . . . . . . . . . . . . . . Cave-ins Triggered . | . . . . . . . . . . . . . . . Exploration Rate (%) 42 | 4 33 39 22 24 91 81 24 7 93 14 43 57 69 34 Regions Visited 14 Branch Regions 8 Pre-discovered Areas 3 | . . . . . 1 . . . . . 1 . 1 . Known Exits Taken 1 | . . . . . . . . 1 . . . . . . Unknown Exits Taken 12 | 1 1 1 1 1 1 1 1 . . 1 1 1 1 . Scrap Searched 10 | . . 1 . . . 1 . . . . 6 2 . . Spaces Dug . | . . . . . . . . . . . . . . . Terrain Destroyed . | . . . . . . . . . . . . . . . Melee . | . . . . . . . . . . . . . . . Projectile . | . . . . . . . . . . . . . . . AOE . | . . . . . . . . . . . . . . . Terrain Rammed . | . . . . . . . . . . . . . . . Walls Destroyed . | . . . . . . . . . . . . . . . Machines Disabled . | . . . . . . . . . . . . . . . Actions | -11 -10 -10 -9 -9 -9 -8 -8 -7 -7 -6 -6 -6 -6 -5 --------- Run | Yrd Mat Min Mat Min Exi Min Mat Fac DSF Fac Low Low Dat Pro Total 2963 | 17 99 134 92 61 541 302 151 153 134 363 218 360 79 259 Wait 14 | . . . . . . . . 1 . 8 2 . . 3 Move 2923 | 17 97 133 92 61 541 301 141 152 125 352 216 360 79 256 Hop . | . . . . . . . . . . . . . . . Pick Up . | . . . . . . . . . . . . . . . Fast Attach . | . . . . . . . . . . . . . . . Attach . | . . . . . . . . . . . . . . . Detach . | . . . . . . . . . . . . . . . Swap . | . . . . . . . . . . . . . . . Drop . | . . . . . . . . . . . . . . . Fire . | . . . . . . . . . . . . . . . Melee . | . . . . . . . . . . . . . . . Ram 17 | . 2 1 . . . 1 10 . . 3 . . . . Kick . | . . . . . . . . . . . . . . . Crush . | . . . . . . . . . . . . . . . Escape Stasis 9 | . . . . . . . . . 9 . . . . . Rewire . | . . . . . . . . . . . . . . . Trap . | . . . . . . . . . . . . . . . Miscellaneous . | . . . . . . . . . . . . . . . Route ------- -11/Scrapyard -10/Materials -10/Mines -9/Materials -9/Mines -9/Exiles -8/Mines -8/Materials (discovered 2 exits: *Fac / Sto) -7/Factory -7/DSF -6/Factory -6/Lower Caves -6/Lower Caves -6/Data Miner -5/Proximity Caves History --------- Turn | Location | Event 3 | -11/Scrapyard | Discovered new exit (range 16) 10 | -11/Scrapyard | Entered Materials 57 | -10/Materials | Discovered new exit (range 10) 61 | -10/Materials | Entered Mines 106 | -10/Mines | Learned Materials stockpile data 123 | -10/Mines | Core integrity fell below 50% 127 | -10/Mines | Assembled infested the area 127 | -10/Mines | Discovered new exit (range 6) 129 | -10/Mines | Entered Materials 129 | -9/Materials | Evolved 2 slots: Power x2 168 | -9/Materials | Discovered new exit (range 16) 176 | -9/Materials | Entered Mines 205 | -9/Mines | Deemed a non-threat by the Exiles lab entrance 205 | -9/Mines | Discovered new exit (range 5) 207 | -9/Mines | Entered Exiles 219 | -9/Exiles | Met 8R-AWN 228 | -9/Exiles | Met EX-HEX 252 | -9/Exiles | Met EX-DEC 262 | -9/Exiles | Visited The Gauntlet 305 | -9/Exiles | Build established: Mutant 334 | -9/Exiles | Discovered new exit (range 14) 360 | -9/Exiles | Learned location of Zion (-7) 376 | -9/Exiles | Met EX-BIN 383 | -9/Exiles | Aligned with FarCom system 383 | -9/Exiles | Given EX-Vault access code 395 | -9/Exiles | Opened EX-Vault 416 | -9/Exiles | Exiles lab attacked by MAIN.C 478 | -9/Exiles | Entered Mines 599 | -8/Mines | Core integrity fell below 50% 625 | -8/Mines | Discovered new exit (range 11) 630 | -8/Mines | Core integrity fell below 20% 630 | -8/Mines | Entered Materials 630 | -8/Materials | Evolved 2 slots: Power x2 631 | -8/Materials | Identified exit to Storage 702 | -8/Materials | Discovered new exit (range 9) 711 | -8/Materials | Core integrity fell below 50% 711 | -8/Materials | Entered Factory 711 | -7/Factory | Evolved 2 slots: Power x2 789 | -7/Factory | Identified exit to DSF 789 | -7/Factory | Entered DSF 815 | -7/DSF | Additional patrols routed to DSF 823 | -7/DSF | Core integrity fell below 50% 856 | -7/DSF | Core integrity fell below 20% 856 | -7/DSF | Discovered new exit (range 11) 861 | -7/DSF | Entered Factory 861 | -6/Factory | Evolved 2 slots: Power x2 1045 | -6/Factory | Discovered new exit (range 7) 1049 | -6/Factory | Entered Lower Caves 1076 | -6/Lower Caves | Learned location of Extension (-5) 1157 | -6/Lower Caves | Discovered new exit (range 5) 1160 | -6/Lower Caves | Entered another Lower Caves area 1167 | -6/Lower Caves | Core integrity fell below 50% 1201 | -6/Lower Caves | Attracted the attention of an 0b10 outpost 1229 | -6/Lower Caves | Encountered a Warlord checkpoint 1329 | -6/Lower Caves | Discovered new exit (range 10) 1341 | -6/Lower Caves | Entered Data Miner 1341 | -6/Data Miner | Discovered new exit (range 6) 1351 | -6/Data Miner | Met Data Miner 1361 | -6/Data Miner | Learned location of Section 7 (-3) 1361 | -6/Data Miner | Acquired the access code to Warlord's prototype stash 1371 | -6/Data Miner | Received God Mode back door access code from Data Miner 1381 | -6/Data Miner | Entered Proximity Caves 1386 | -5/Proximity Caves | Learned Factory security intel 1425 | -5/Proximity Caves | Escorted by Enhanced Grunt 1496 | -5/Proximity Caves | Core integrity fell below 20% 1512 | -5/Proximity Caves | Destroyed by S-27 Virus with Autogun Last Messages --------------- LOCATION=UNKNOWN GOAL=ESCAPE 01386_ Acquired derelict log, extracted data. Data stored: Factory security intel. 01391_ Acquired derelict log, extracted data. Data stored: Armory entrances (x1). 01425_ Enhanced Grunt: "Protecting LRC-V3." 01431_ Chain reaction triggered in Lgt. Nuclear Core. 01431_ S-27 Virus destroyed. 01434_ Autogun fries itself beyond repair. 01440_ Tesla Rifle fries itself beyond repair. 01442_ Antigrav System fries itself beyond repair. 01444_ Imp. Remote Datajack fries itself beyond repair. 01445_ Imp. Target Analyzer fries itself beyond repair. 01448_ Imp. Heat Sink fries itself beyond repair. 01448_ Hpw. Shock Rifle fries itself beyond repair. 01453_ G-50 Soldier destroyed. 01458_ Carbon-fiber Leg fries itself beyond repair. 01463_ Lgt. Angular Momentum Engine fries itself beyond repair. 01465_ Carbon-fiber Leg fries itself beyond repair. Map ----- +----------------------------------------------------+ | ?????????????????????????????????????????????????? | | ?????????????????????????????????????????????????? | | ?????????????????????????????????????????????????? | | ?????????????????????????????????????????????????? | | ?????????????????????????????????????????????????? | | ?????????????????????????????????????????????????? | | ?????????????????????????????????????????????????? | | ?????????????????????????????????????????????????? | | ?????????????????????????????????????????????????? | | ?????????????????????????????????????????????????? | | ??????????????????????? ???????????????????????? | | ?????????????????????? ???????????????????????? | | ?????????????????????? ???????????????????????? | | ??????????????????????# ???????????????????????? | | ????????????????#???### ???????????????????????? | | ??????? ?????### ??## #???????????????????????? | | ????? ????## ?## ##?????????? ???????????? | | ??? ????? ## #????????? ???????????? | | ?? ????? ???????? ??????????? | | ?? ??????# #??????? ??????????? | | ?? ??????# ##?#### ??????????? | | ??? #??????# ## ?????????? | | ???? ####### ???????????? | | ?????? ## ??????????????? | | ???????# #??????????????????? | | ????????# @ #???????????????????? | | ?????????# ###?????????????????? | | ##########s #?????????????????? | | # #????????????????? | | # #???????????????? | | # ###### #???????????????? | | # #????# #???????????????? | | # #????## #???????????????? | | # #?????# #???????????????? | | #???## ### ###### #???????????????? | | #?? ##?## #?????###???????????????? | | ####? #???#### # #???????????????????????? | | ##### #??????##### ??????????????????????? | | ##?????????? ?????????????????????? | | #???????????# ????????????????????? | | ###### #???????????? ????????????????????? | | #????## #??????????? ????????????????????? | | ##????## ?????????????? ? ??????????????????????? | | ##????###???????????????????????????????????????? | | #??????????????????????????????????????????????? | | #??????????????????????????????????????????????? | | #??????????????????????????????????????????????? | | #??????????????????????????????????????????????? | | #??????????????????????????????????????????????? | | #??????????????????????????????????????????????? | +----------------------------------------------------+ Best States ------------- Heat Dissipation 37 Energy Generation 5 Energy Capacity 100 Matter Stores 300 Matter Capacity 300 Sight Range 16 Terrain Scan Density 10 Evasion (%) 50 Item Schematics ----------------- Combat Drone Bay | -6/Data Miner | Free Lgt. Regenerative Plating | -6/Data Miner | Free Enh. Armored Leg | -6/Data Miner | Free Exp. Heat Sink | -6/Data Miner | Free Thunder Hammer | -6/Data Miner | Free Imp. Gyrokinetic Inverter | -6/Data Miner | Free Adv. Actuator Array | -6/Data Miner | Free Phase Gun | -6/Data Miner | Free Imp. Launcher Guidance Computer | -6/Data Miner | Free Adv. Particle Charger | -6/Data Miner | Free Adv. Datajack | -6/Data Miner | Free Q-thruster | -6/Data Miner | Free Robot Schematics ------------------ S-27 Virus | -6/Data Miner | Free E-15 Imp | -6/Data Miner | Free B-60 Warrior | -6/Data Miner | Free G-50 Soldier | -6/Data Miner | Free C-35 Carver | -6/Data Miner | Free Fabricated ------------ Nothing Repaired ---------- Nothing Alien Tech Used ----------------- None Achievements -------------- Leap Before You Look Challenges ------------ None Game ------ Seed TowerAccelerationInitializer Manual? 0 Play Time 00:23:42 Cumulative 20.1 hours Start 2025.06.18 @ 21:50:54 End 2025.06.18 @ 22:12:43 Sessions 1 Manual Loads 0 Difficulty Rogue Special Mode None Game No. 30 Rogue 30 Adventurer 0 Explorer 0 Win Type - Total 2 Types 2/0/0/0/0/0/0/0/0/0 Lore% 17 Gallery% 19 Achievement% 30 Wizard Run 0 Options --------- Layout 0 ASCII 0 Keyboard 1 Movement Vi Keybinds 0 Fullscreen 1 Font 18/SmallcapsGlow Map View 76x50 Zoom Use 0% Tactical HUD 1 Map Filters NONE Filters NONE Steam 1 RUN: 24758a07-c07c-4bb0-aa18-1aca43ac9557